fUSD/lending_fUSD_20260605
["ID","MTS","AMOUNT","RATE_DAILY","PERIOD"]
[424137246,1780607488000,-1171.82,0.00037972,11]
[424137248,1780607488000,-500.0,0.00037972,11]
[424137252,1780607488000,-500.0,0.00037972,11]
[424137224,1780607488000,-500.0,0.00037972,11]
[424137235,1780607488000,-500.0,0.00037972,11]
[424137218,1780607488000,-524.89371875,0.00037972,11]
[424137216,1780607488000,-3104.62,0.00037972,11]
[424137220,1780607488000,-500.0,0.00037972,11]
[424137249,1780607488000,-595.3,0.00037972,11]
[424137191,1780607488000,-3563.89,0.00037972,11]
[424137192,1780607488000,-531.93,0.00037972,11]
[424137195,1780607488000,-665.08,0.00037972,11]
[424137196,1780607488000,-3546.02,0.00037972,11]
[424137194,1780607488000,-500.0,0.00037972,11]
[424137193,1780607488000,-296.84510907,0.00037972,2]
[424137197,1780607488000,-3494.2,0.00037972,11]
[424137198,1780607488000,-3412.16,0.00037972,11]
[424137201,1780607488000,-9429.18,0.00037972,11]
[424137203,1780607488000,-9837.19,0.00037972,11]
[424137202,1780607488000,-500.0,0.00037972,11]
[424137199,1780607488000,-3628.99,0.00037972,11]
[424137200,1780607488000,-500.0,0.00037972,11]
[424137205,1780607488000,-6206.91,0.00037972,11]
[424137215,1780607488000,-533.68,0.00037972,11]
[424137204,1780607488000,-500.0,0.00037972,11]
[424137206,1780607488000,-8627.97,0.00037972,11]
[424137207,1780607488000,-500.0,0.00037972,11]
[424137212,1780607488000,-718.88,0.00037972,11]
[424137209,1780607488000,-500.0,0.00037972,11]
[424137208,1780607488000,-500.0,0.00037972,11]
[424137210,1780607488000,-2900.38,0.00037972,11]
[424137213,1780607488000,-6377.55,0.00037972,11]
[424137214,1780607488000,-500.0,0.00037972,11]
[424137219,1780607488000,-4154.75,0.00037972,11]
[424137217,1780607488000,-500.0,0.00037972,11]
[424137221,1780607488000,-500.0,0.00037972,11]
[424137251,1780607488000,-15890.34,0.00037972,11]
[424137211,1780607488000,-500.0,0.00037972,11]
[424137247,1780607488000,-3112.66,0.00037972,11]
[424137281,1780607488000,-702.74,0.00037972,11]
[424137285,1780607488000,-500.0,0.00037972,11]
[424137287,1780607488000,-3111.92,0.00037972,11]
[424137286,1780607488000,-6996.9,0.00037972,11]
[424137310,1780607488000,-500.0,0.00037972,11]
[424137288,1780607488000,-571.38,0.00037972,11]
[424137290,1780607488000,-4650.59,0.00037972,11]
[424137292,1780607488000,-500.0,0.00037972,11]
[424137293,1780607488000,-3790.95,0.00037972,11]
[424137291,1780607488000,-1136.83,0.00037972,11]
[424137296,1780607488000,-500.0,0.00037972,11]
[424137297,1780607488000,-500.0,0.00037972,11]
[424137294,1780607488000,-4107.63,0.00037972,11]
[424137289,1780607488000,-500.0,0.00037972,11]
[424137295,1780607488000,-4507.58,0.00037972,11]
[424137300,1780607488000,-2829.34,0.00037972,11]
[424137298,1780607488000,-500.0,0.00037972,11]
[424137302,1780607488000,-500.0,0.00037972,11]
[424137305,1780607488000,-601.14,0.00037972,11]
[424137301,1780607488000,-558.09,0.00037972,11]
[424137303,1780607488000,-2024.03,0.00037972,11]
[424137304,1780607488000,-500.0,0.00037972,11]
[424137307,1780607488000,-633.72,0.00037972,11]
[424137306,1780607488000,-500.0,0.00037972,11]
[424137309,1780607488000,-8451.65,0.00037972,11]
[424137308,1780607488000,-500.0,0.00037972,11]
[424137250,1780607488000,-500.0,0.00037972,11]
[424137280,1780607488000,-3359.97,0.00037972,11]
[424137282,1780607488000,-448.79326287,0.00037972,11]
[424137299,1780607488000,-3178.87,0.00037972,11]
[424137279,1780607488000,-500.0,0.00037972,11]
[424137284,1780607488000,-3032.7,0.00037972,11]
[424137256,1780607488000,-500.0,0.00037972,11]
[424137258,1780607488000,-4798.39,0.00037972,11]
[424137259,1780607488000,-500.0,0.00037972,11]
[424137260,1780607488000,-3339.36,0.00037972,11]
[424137261,1780607488000,-500.0,0.00037972,11]
[424137255,1780607488000,-500.0,0.00037972,11]
[424137253,1780607488000,-500.0,0.00037972,11]
[424137262,1780607488000,-4334.54,0.00037972,11]
[424137254,1780607488000,-500.0,0.00037972,11]
[424137263,1780607488000,-500.0,0.00037972,11]
[424137264,1780607488000,-3576.54,0.00037972,11]
[424137265,1780607488000,-500.0,0.00037972,11]
[424137266,1780607488000,-500.0,0.00037972,11]
[424137257,1780607488000,-561.85,0.00037972,11]
[424137276,1780607488000,-3337.69,0.00037972,11]
[424137271,1780607488000,-9643.11,0.00037972,11]
[424137272,1780607488000,-500.0,0.00037972,11]
[424137267,1780607488000,-500.0,0.00037972,11]
[424137270,1780607488000,-4311.22,0.00037972,11]
[424137269,1780607488000,-500.0,0.00037972,11]
[424137273,1780607488000,-500.0,0.00037972,11]
[424137274,1780607488000,-2873.09,0.00037972,11]
[424137275,1780607488000,-500.0,0.00037972,11]
[424137268,1780607488000,-500.0,0.00037972,11]
[424137277,1780607488000,-3336.46,0.00037972,11]
[424137278,1780607488000,-524.18,0.00037972,11]
[424137283,1780607488000,-500.0,0.00037972,11]
[424137349,1780607489000,-543.36,0.00037972,11]
[424137348,1780607489000,-4425.91,0.00037972,11]
[424137343,1780607489000,-500.0,0.00037972,11]
[424137352,1780607489000,-2173.31,0.00037972,11]
[424137347,1780607489000,-5259.59,0.00037972,11]
[424137353,1780607489000,-3491.63,0.00037972,11]
[424137351,1780607489000,-4400.8,0.00037972,11]
[424137344,1780607489000,-7429.85,0.00037972,11]
[424137350,1780607489000,-4600.9,0.00037972,11]
[424137346,1780607489000,-166.97422533,0.00037972,11]
[424137345,1780607489000,-631.71,0.00037972,11]
[424137355,1780607489000,-5178.13,0.00037972,11]
[424137342,1780607489000,-500.0,0.00037972,11]
[424137365,1780607489000,-500.0,0.00037972,11]
[424137362,1780607489000,-513.38,0.00037972,11]
[424137360,1780607489000,-4490.65,0.00037972,11]
[424137359,1780607489000,-4252.57,0.00037972,11]
[424137361,1780607489000,-500.0,0.00037972,11]
[424137356,1780607489000,-3896.22,0.00037972,11]
[424137357,1780607489000,-500.0,0.00037972,11]
[424137354,1780607489000,-648.06,0.00037972,11]
[424137358,1780607489000,-500.0,0.00037972,11]
[424137364,1780607489000,-500.0,0.00037972,11]
[424137370,1780607489000,-2997.46,0.00037972,11]
[424137366,1780607489000,-500.0,0.00037972,11]
[424137369,1780607489000,-500.0,0.00037972,11]
[424137368,1780607489000,-4440.1,0.00037972,11]
[424137363,1780607489000,-500.0,0.00037972,11]
[424137341,1780607489000,-500.0,0.00037972,11]
[424137312,1780607489000,-6469.94,0.00037972,11]
[424137333,1780607489000,-4887.15,0.00037972,11]
[424137371,1780607489000,-500.0,0.00037972,11]
[424137313,1780607489000,-500.0,0.00037972,11]
[424137311,1780607489000,-500.0,0.00037972,11]
[424137315,1780607489000,-6296.36,0.00037972,11]
[424137322,1780607489000,-500.0,0.00037972,11]
[424137321,1780607489000,-11634.89,0.00037972,11]
[424137323,1780607489000,-3048.3,0.00037972,11]
[424137316,1780607489000,-2685.34,0.00037972,11]
[424137314,1780607489000,-757.35,0.00037972,11]
[424137324,1780607489000,-12334.13,0.00037972,11]
[424137318,1780607489000,-500.0,0.00037972,11]
[424137325,1780607489000,-500.0,0.00037972,11]
[424137317,1780607489000,-2401.0,0.00037972,11]
[424137332,1780607489000,-500.0,0.00037972,11]
[424137326,1780607489000,-2357.35,0.00037972,11]
[424137319,1780607489000,-3072.94,0.00037972,11]
[424137334,1780607489000,-500.0,0.00037972,11]
[424137327,1780607489000,-500.0,0.00037972,11]
[424137336,1780607489000,-1942.96,0.00037972,11]
[424137339,1780607489000,-500.0,0.00037972,11]
[424137340,1780607489000,-3857.65,0.00037972,11]
[424137330,1780607489000,-667.01,0.00037972,11]
[424137335,1780607489000,-4545.69,0.00037972,11]
[424137329,1780607489000,-500.0,0.00037972,11]
[424137337,1780607489000,-4751.19,0.00037972,11]
[424137338,1780607489000,-500.0,0.00037972,11]
[424137328,1780607489000,-518.51,0.00037972,11]
[424137331,1780607489000,-500.0,0.00037972,11]
[424137320,1780607489000,-500.0,0.00037972,11]
[424137373,1780607489000,-500.0,0.00037972,11]
[424137380,1780607489000,-1666.07,0.00037972,11]
[424137375,1780607489000,-3145.9,0.00037972,11]
[424137406,1780607489000,-1369.62890625,0.00038,2]
[424137405,1780607489000,-311.823431,0.00038,60]
[424137408,1780607489000,-3000.0,0.00038,30]
[424137409,1780607489000,-164.0,0.00038024,11]
[424137407,1780607489000,-151.0,0.00038,60]
[424137411,1780607489000,-598.58169926,0.00038027,11]
[424137413,1780607489000,-500.0,0.00038027,11]
[424137412,1780607489000,-500.0,0.00038027,11]
[424137410,1780607489000,-630.74710949,0.00038026,11]
[424137416,1780607489000,-500.0,0.00038027,11]
[424137417,1780607489000,-519.43,0.00038027,11]
[424137418,1780607489000,-500.0,0.00038027,11]
[424137419,1780607489000,-500.0,0.00038027,11]
[424137403,1780607489000,-1369.62890625,0.00038,2]
[424137422,1780607489000,-621.31,0.00038027,11]
[424137424,1780607489000,-569.06,0.00038027,11]
[424137426,1780607489000,-500.0,0.00038027,11]
[424137378,1780607489000,-2827.17,0.00037972,11]
[424137421,1780607489000,-500.0,0.00038027,11]
[424137425,1780607489000,-500.0,0.00038027,11]
[424137427,1780607489000,-933.84,0.00038027,11]
[424137429,1780607489000,-500.0,0.00038027,11]
[424137428,1780607489000,-500.0,0.00038027,11]
[424137430,1780607489000,-611.92,0.00038027,11]
[424137431,1780607489000,-500.0,0.00038027,11]
[424137432,1780607489000,-500.0,0.00038027,11]
[424137433,1780607489000,-858.66,0.00038027,11]
[424137434,1780607489000,-500.0,0.00038027,11]
[424137423,1780607489000,-527.04,0.00038027,11]
[424137415,1780607489000,-500.0,0.00038027,11]
[424137420,1780607489000,-500.0,0.00038027,11]
[424137404,1780607489000,-311.823431,0.00038,60]
[424137414,1780607489000,-500.0,0.00038027,11]
[424137374,1780607489000,-500.0,0.00037972,11]
[424137367,1780607489000,-15648.77,0.00037972,11]
[424137376,1780607489000,-1243.01,0.00037972,11]
[424137377,1780607489000,-4028.7,0.00037972,11]
[424137372,1780607489000,-500.0,0.00037972,11]
[424137390,1780607489000,-27536.76,0.00038,2]
[424137381,1780607489000,-5211.17,0.00037972,11]
[424137383,1780607489000,-3001.73,0.00037972,11]
[424137382,1780607489000,-500.0,0.00037972,11]
[424137384,1780607489000,-520.25181531,0.00037972,11]
[424137388,1780607489000,-151.19220666,0.00037989,2]
[424137385,1780607489000,-509.05105614,0.00037972,11]
[424137387,1780607489000,-1592.0,0.00037983,11]
[424137379,1780607489000,-500.0,0.00037972,11]
[424137389,1780607489000,-120151.64,0.00038,2]
[424137401,1780607489000,-182.0,0.00038,120]
[424137386,1780607489000,-23307.61165336,0.0003798,10]
[424137399,1780607489000,-18490.55489157,0.00038,10]
[424137398,1780607489000,-45331.66968375,0.00038,10]
[424137400,1780607489000,-183.0,0.00038,2]
[424137396,1780607489000,-1279.79,0.00038,120]
[424137397,1780607489000,-166.0,0.00038,120]
[424137402,1780607489000,-184.36837797,0.00038,2]
[424137394,1780607489000,-255.569836,0.00038,20]
[424137391,1780607489000,-5000.0,0.00038,2]
[424137395,1780607489000,-207.430164,0.00038,20]
[424137392,1780607489000,-29537.68,0.00038,2]
[424137393,1780607489000,-303.0,0.00038,20]
[424137454,1780607490000,-500.0,0.00038027,11]
[424137453,1780607490000,-500.0,0.00038027,11]
[424137464,1780607490000,-500.0,0.00038027,11]
[424137458,1780607490000,-655.5,0.00038027,11]
[424137457,1780607490000,-654.49,0.00038027,11]
[424137459,1780607490000,-500.0,0.00038027,11]
[424137462,1780607490000,-500.0,0.00038027,11]
[424137469,1780607490000,-813.06,0.00038027,11]
[424137465,1780607490000,-1168.37,0.00038027,2]
[424137467,1780607490000,-500.0,0.00038027,11]
[424137463,1780607490000,-500.0,0.00038027,11]
[424137470,1780607490000,-500.0,0.00038027,11]
[424137468,1780607490000,-500.0,0.00038027,11]
[424137471,1780607490000,-500.0,0.00038027,11]
[424137472,1780607490000,-576.13,0.00038027,11]
[424137474,1780607490000,-500.0,0.00038027,11]
[424137455,1780607490000,-704.67,0.00038027,11]
[424137473,1780607490000,-503.93,0.00038027,11]
[424137466,1780607490000,-305.25898495,0.00038027,11]
[424137456,1780607490000,-500.0,0.00038027,11]
[424137442,1780607490000,-500.0,0.00038027,11]
[424137450,1780607490000,-650.34,0.00038027,11]
[424137475,1780607490000,-500.0,0.00038027,11]
[424137438,1780607490000,-760.89,0.00038027,11]
[424137437,1780607490000,-500.0,0.00038027,11]
[424137435,1780607490000,-919.67,0.00038027,11]
[424137436,1780607490000,-500.0,0.00038027,11]
[424137439,1780607490000,-500.0,0.00038027,11]
[424137443,1780607490000,-500.0,0.00038027,11]
[424137441,1780607490000,-500.0,0.00038027,11]
[424137452,1780607490000,-500.0,0.00038027,11]
[424137444,1780607490000,-500.0,0.00038027,11]
[424137448,1780607490000,-500.0,0.00038027,11]
[424137445,1780607490000,-500.0,0.00038027,11]
[424137449,1780607490000,-500.0,0.00038027,11]
[424137446,1780607490000,-500.0,0.00038027,11]
[424137447,1780607490000,-601.68,0.00038027,11]
[424137451,1780607490000,-360.23521321,0.00038027,11]
[424137460,1780607490000,-500.0,0.00038027,11]
[424137461,1780607490000,-500.0,0.00038027,11]
[424137440,1780607490000,-676.23,0.00038027,11]
[424137479,1780607490000,-587.58,0.00038027,11]
[424137481,1780607490000,-501.27129346,0.00038027,11]
[424137476,1780607490000,-545.45,0.00038027,11]
[424137498,1780607490000,-500.0,0.00038027,11]
[424137502,1780607490000,-959.73,0.00038027,11]
[424137503,1780607490000,-622.52,0.00038027,11]
[424137513,1780607490000,-500.0,0.00038027,11]
[424137512,1780607490000,-500.0,0.00038027,11]
[424137504,1780607490000,-500.0,0.00038027,11]
[424137505,1780607490000,-500.0,0.00038027,11]
[424137506,1780607490000,-500.0,0.00038027,11]
[424137499,1780607490000,-500.0,0.00038027,11]
[424137507,1780607490000,-2135.96,0.00038027,11]
[424137508,1780607490000,-731.99,0.00038027,11]
[424137511,1780607490000,-659.75,0.00038027,11]
[424137516,1780607490000,-500.0,0.00038027,11]
[424137518,1780607490000,-500.0,0.00038027,11]
[424137517,1780607490000,-4753.62,0.00038027,11]
[424137514,1780607490000,-500.0,0.00038027,11]
[424137515,1780607490000,-743.9,0.00038027,3]
[424137477,1780607490000,-500.0,0.00038027,11]
[424137510,1780607490000,-500.0,0.00038027,11]
[424137501,1780607490000,-500.0,0.00038027,2]
[424137509,1780607490000,-500.0,0.00038027,11]
[424137497,1780607490000,-500.0,0.00038027,11]
[424137483,1780607490000,-500.0,0.00038027,11]
[424137500,1780607490000,-526.23,0.00038027,11]
[424137519,1780607490000,-1339.82,0.00038027,11]
[424137480,1780607490000,-500.0,0.00038027,11]
[424137482,1780607490000,-500.0,0.00038027,11]
[424137484,1780607490000,-642.11,0.00038027,11]
[424137486,1780607490000,-506.64,0.00038027,11]
[424137485,1780607490000,-500.0,0.00038027,11]
[424137488,1780607490000,-500.0,0.00038027,11]
[424137478,1780607490000,-716.65,0.00038027,11]
[424137494,1780607490000,-835.7,0.00038027,2]
[424137492,1780607490000,-500.0,0.00038027,11]
[424137487,1780607490000,-500.0,0.00038027,11]
[424137489,1780607490000,-500.0,0.00038027,11]
[424137491,1780607490000,-500.0,0.00038027,11]
[424137493,1780607490000,-573.72,0.00038027,11]
[424137490,1780607490000,-1480.09,0.00038027,2]
[424137495,1780607490000,-620.97,0.00038027,11]
[424137496,1780607490000,-3897.01,0.00038027,11]
[424137559,1780607491000,-500.0,0.00038027,11]
[424137553,1780607491000,-500.0,0.00038027,11]
[424137552,1780607491000,-500.0,0.00038027,11]
[424137549,1780607491000,-786.81,0.00038027,11]
[424137550,1780607491000,-500.0,0.00038027,11]
[424137555,1780607491000,-601.28,0.00038027,11]
[424137551,1780607491000,-500.0,0.00038027,11]
[424137556,1780607491000,-1955.75,0.00038027,11]
[424137561,1780607491000,-790.25,0.00038027,11]
[424137547,1780607491000,-2807.22,0.00038027,11]
[424137554,1780607491000,-500.0,0.00038027,11]
[424137563,1780607491000,-500.0,0.00038027,11]
[424137571,1780607491000,-500.0,0.00038027,11]
[424137562,1780607491000,-2658.89,0.00038027,11]
[424137564,1780607491000,-639.59,0.00038027,11]
[424137566,1780607491000,-500.0,0.00038027,11]
[424137565,1780607491000,-500.0,0.00038027,11]
[424137569,1780607491000,-3642.31,0.00038027,11]
[424137568,1780607491000,-500.0,0.00038027,11]
[424137581,1780607491000,-521.5,0.00038027,11]
[424137572,1780607491000,-361.62444533,0.00038027,11]
[424137570,1780607491000,-610.07,0.00038027,11]
[424137574,1780607491000,-500.0,0.00038027,11]
[424137576,1780607491000,-593.84330711,0.00038027,11]
[424137558,1780607491000,-500.0,0.00038027,11]
[424137560,1780607491000,-500.0,0.00038027,11]
[424137557,1780607491000,-258.56143798,0.00038027,11]
[424137533,1780607491000,-500.0,0.00038027,11]
[424137544,1780607491000,-1430.55,0.00038027,11]
[424137523,1780607491000,-4153.69,0.00038027,11]
[424137521,1780607491000,-500.0,0.00038027,11]
[424137522,1780607491000,-500.0,0.00038027,11]
[424137520,1780607491000,-500.0,0.00038027,11]
[424137524,1780607491000,-2524.42,0.00038027,11]
[424137525,1780607491000,-500.0,0.00038027,11]
[424137527,1780607491000,-623.71,0.00038027,11]
[424137528,1780607491000,-500.0,0.00038027,11]
[424137577,1780607491000,-500.0,0.00038027,11]
[424137529,1780607491000,-812.19,0.00038027,11]
[424137532,1780607491000,-500.0,0.00038027,11]
[424137530,1780607491000,-500.0,0.00038027,11]
[424137548,1780607491000,-258.79038334,0.00038027,11]
[424137531,1780607491000,-500.0,0.00038027,11]
[424137535,1780607491000,-3768.72,0.00038027,11]
[424137534,1780607491000,-500.0,0.00038027,11]
[424137536,1780607491000,-2618.0,0.00038027,11]
[424137538,1780607491000,-500.0,0.00038027,11]
[424137537,1780607491000,-800.05,0.00038027,11]
[424137539,1780607491000,-578.2,0.00038027,11]
[424137543,1780607491000,-4090.61,0.00038027,11]
[424137540,1780607491000,-776.69,0.00038027,11]
[424137542,1780607491000,-500.0,0.00038027,11]
[424137541,1780607491000,-500.0,0.00038027,11]
[424137546,1780607491000,-500.0,0.00038027,11]
[424137545,1780607491000,-500.0,0.00038027,11]
[424137526,1780607491000,-500.0,0.00038027,11]
[424137575,1780607491000,-500.0,0.00038027,11]
[424137567,1780607491000,-500.0,0.00038027,11]
[424137573,1780607491000,-2929.97,0.00038027,11]
[424137611,1780607491000,-500.0,0.00038027,11]
[424137610,1780607491000,-2916.9,0.00038027,11]
[424137614,1780607491000,-500.0,0.00038027,11]
[424137615,1780607491000,-500.0,0.00038027,11]
[424137617,1780607491000,-2656.95,0.00038027,11]
[424137616,1780607491000,-500.0,0.00038027,11]
[424137613,1780607491000,-500.0,0.00038027,11]
[424137612,1780607491000,-685.93,0.00038027,11]
[424137620,1780607491000,-543.2,0.00038027,11]
[424137629,1780607491000,-500.0,0.00038027,11]
[424137621,1780607491000,-597.61,0.00038027,11]
[424137628,1780607491000,-3144.39,0.00038027,11]
[424137607,1780607491000,-500.0,0.00038027,11]
[424137630,1780607491000,-500.0,0.00038027,11]
[424137619,1780607491000,-500.0,0.00038027,11]
[424137624,1780607491000,-500.0,0.00038027,11]
[424137625,1780607491000,-500.0,0.00038027,11]
[424137626,1780607491000,-500.0,0.00038027,11]
[424137627,1780607491000,-200.44,0.00038027,11]
[424137631,1780607491000,-790.85,0.00038027,11]
[424137632,1780607491000,-606.24,0.00038027,11]
[424137633,1780607491000,-500.0,0.00038027,11]
[424137634,1780607491000,-500.0,0.00038027,11]
[424137635,1780607491000,-500.0,0.00038027,11]
[424137636,1780607491000,-3678.48,0.00038027,11]
[424137580,1780607491000,-2550.57,0.00038027,11]
[424137622,1780607491000,-500.0,0.00038027,11]
[424137609,1780607491000,-500.0,0.00038027,11]
[424137623,1780607491000,-500.0,0.00038027,11]
[424137618,1780607491000,-3429.27,0.00038027,11]
[424137608,1780607491000,-500.0,0.00038027,11]
[424137578,1780607491000,-500.0,0.00038027,11]
[424137582,1780607491000,-3910.95,0.00038027,11]
[424137585,1780607491000,-566.1,0.00038027,11]
[424137593,1780607491000,-670.74,0.00038027,11]
[424137586,1780607491000,-550.29,0.00038027,11]
[424137583,1780607491000,-500.0,0.00038027,11]
[424137591,1780607491000,-559.05,0.00038027,11]
[424137587,1780607491000,-500.0,0.00038027,11]
[424137584,1780607491000,-500.0,0.00038027,11]
[424137594,1780607491000,-500.0,0.00038027,11]
[424137588,1780607491000,-500.0,0.00038027,11]
[424137590,1780607491000,-755.81,0.00038027,11]
[424137589,1780607491000,-500.0,0.00038027,11]
[424137579,1780607491000,-678.09,0.00038027,11]
[424137605,1780607491000,-500.0,0.00038027,11]
[424137592,1780607491000,-500.0,0.00038027,11]
[424137602,1780607491000,-537.21,0.00038027,11]
[424137601,1780607491000,-347.76761825,0.00038027,11]
[424137603,1780607491000,-519.35,0.00038027,11]
[424137599,1780607491000,-500.0,0.00038027,11]
[424137604,1780607491000,-500.0,0.00038027,11]
[424137597,1780607491000,-500.0,0.00038027,11]
[424137598,1780607491000,-233.60877417,0.00038027,11]
[424137596,1780607491000,-500.0,0.00038027,11]
[424137595,1780607491000,-3784.18,0.00038027,11]
[424137606,1780607491000,-500.0,0.00038027,11]
[424137600,1780607491000,-500.0,0.00038027,11]
[424137679,1780607492000,-3404.48,0.00038027,11]
[424137672,1780607492000,-3108.82,0.00038027,11]
[424137674,1780607492000,-3559.2,0.00038027,11]
[424137673,1780607492000,-500.0,0.00038027,11]
[424137670,1780607492000,-500.0,0.00038027,11]
[424137667,1780607492000,-437.67003308,0.00038027,11]
[424137668,1780607492000,-500.0,0.00038027,11]
[424137676,1780607492000,-500.0,0.00038027,11]
[424137677,1780607492000,-3194.29,0.00038027,11]
[424137669,1780607492000,-534.54,0.00038027,11]
[424137671,1780607492000,-500.0,0.00038027,11]
[424137678,1780607492000,-5109.23,0.00038027,11]
[424137675,1780607492000,-11048.61,0.00038027,11]
[424137690,1780607492000,-12766.74,0.00038027,11]
[424137680,1780607492000,-2986.9,0.00038027,11]
[424137691,1780607492000,-306.46704423,0.00038027,11]
[424137682,1780607492000,-5602.37,0.00038027,11]
[424137685,1780607492000,-674.66,0.00038027,11]
[424137687,1780607492000,-8973.49,0.00038027,11]
[424137686,1780607492000,-500.0,0.00038027,11]
[424137692,1780607492000,-500.0,0.00038027,11]
[424137683,1780607492000,-500.0,0.00038027,11]
[424137688,1780607492000,-500.0,0.00038027,11]
[424137684,1780607492000,-574.18,0.00038027,11]
[424137689,1780607492000,-500.0,0.00038027,11]
[424137694,1780607492000,-1000.0,0.00038027,11]
[424137681,1780607492000,-3613.85,0.00038027,11]
[424137662,1780607492000,-500.0,0.00038027,11]
[424137637,1780607492000,-500.0,0.00038027,11]
[424137663,1780607492000,-500.0,0.00038027,11]
[424137639,1780607492000,-2971.37,0.00038027,11]
[424137641,1780607492000,-611.11,0.00038027,11]
[424137640,1780607492000,-612.5,0.00038027,11]
[424137643,1780607492000,-500.0,0.00038027,11]
[424137638,1780607492000,-500.0,0.00038027,11]
[424137642,1780607492000,-613.57886329,0.00038027,11]
[424137644,1780607492000,-500.0,0.00038027,11]
[424137645,1780607492000,-500.0,0.00038027,11]
[424137649,1780607492000,-323.0,0.00038027,11]
[424137648,1780607492000,-631.84707851,0.00038027,11]
[424137646,1780607492000,-813.02,0.00038027,11]
[424137647,1780607492000,-528.3,0.00038027,11]
[424137704,1780607492000,-646.93,0.00038027,11]
[424137650,1780607492000,-500.0,0.00038027,11]
[424137652,1780607492000,-1000.88,0.00038027,11]
[424137651,1780607492000,-551.55,0.00038027,11]
[424137653,1780607492000,-693.12,0.00038027,11]
[424137655,1780607492000,-500.0,0.00038027,11]
[424137654,1780607492000,-500.0,0.00038027,11]
[424137657,1780607492000,-3929.4,0.00038027,11]
[424137656,1780607492000,-500.0,0.00038027,11]
[424137659,1780607492000,-500.0,0.00038027,11]
[424137658,1780607492000,-857.23,0.00038027,11]
[424137660,1780607492000,-500.0,0.00038027,11]
[424137661,1780607492000,-500.0,0.00038027,11]
[424137666,1780607492000,-500.0,0.00038027,11]
[424137664,1780607492000,-500.0,0.00038027,11]
[424137665,1780607492000,-500.0,0.00038027,11]
[424137696,1780607492000,-1030.09,0.00038027,11]
[424137742,1780607492000,-500.0,0.00038027,11]
[424137695,1780607492000,-2214.43,0.00038027,11]
[424137729,1780607492000,-500.0,0.00038027,11]
[424137732,1780607492000,-500.0,0.00038027,11]
[424137733,1780607492000,-550.43,0.00038027,11]
[424137731,1780607492000,-2870.25,0.00038027,11]
[424137734,1780607492000,-4656.83,0.00038027,11]
[424137737,1780607492000,-500.0,0.00038027,11]
[424137736,1780607492000,-500.0,0.00038027,11]
[424137730,1780607492000,-1515.33,0.00038027,11]
[424137738,1780607492000,-1520.84,0.00038027,11]
[424137735,1780607492000,-500.0,0.00038027,11]
[424137739,1780607492000,-4095.64,0.00038027,11]
[424137741,1780607492000,-5268.13,0.00038027,11]
[424137740,1780607492000,-4272.54,0.00038027,11]
[424137745,1780607492000,-500.0,0.00038027,11]
[424137752,1780607492000,-500.0,0.00038027,11]